Cogmind - Beta 11.1 @@@ ROGUE MODE // 2022.12.08 @ 20:09:19 Player: Azormik Result: Destroyed by D-53 Grenadier with Mini Grenade Launcher Performance ------------- Evolutions (0) 0 Regions Visited (2) 400 Robots Destroyed (11) 55 Value Destroyed (121) 121 Prototype IDs (2) 40 Alien Tech Used (0) 0 Bonus (0) 0 TOTAL SCORE: 616 Bonus ------- None Cogmind --------- Core Integrity 0/250 Matter 226/300 Energy 92/100 System Corruption 0% Temperature Cool (0) Movement Rolling (95) Ox1 Location -10/Mines Parts ------- > --- POWER (1) -------- (None) > --- PROPULSION (2) --- Wheel > --- UTILITY (2) ------ Medium Storage Unit > --- WEAPON (2) ------- Particle Cannon > --- INVENTORY (10) --- Ion Engine Wheel Medium Storage Unit Advanced Targeting Computer Target Analyzer Hardened Medium Armor Plating Assault Rifle Light Assault Rifle Grenade Launcher Peak State ------------ > --- POWER ------------ Light Ion Engine > --- PROPULSION ------- Aluminum Leg Aluminum Leg > --- UTILITY ---------- Medium Storage Unit Seismic Detector > --- WEAPON ----------- Assault Rifle High-powered Shotgun > --- INVENTORY -------- Ion Engine Wheel Medium Storage Unit Advanced Targeting Computer Target Analyzer Hardened Medium Armor Plating Particle Cannon Assault Rifle Light Assault Rifle Grenade Launcher [Rating: 10] Favorites ----------- Power Light Ion Engine Engine Light Ion Engine Propulsion Aluminum Leg Leg Aluminum Leg Wheel Wheel Utility Medium Storage Unit Device Seismic Detector Storage Medium Storage Unit Weapon Assault Rifle Energy Gun EM Pulse Gun Energy Cannon Particle Cannon Ballistic Gun Assault Rifle Launcher Grenade Launcher Build | -11 -10 -10 ------- Run | Scr Mat Min Slots Evolved . | . . . Power . | . . . Propulsion . | . . . Utility . | . . . Weapon . | . . . Parts Attached 13 | 7 2 4 Power 1 | 1 . . Engine 1 | 1 . . Core . | . . . Reactor . | . . . Propulsion 3 | 2 . 1 Treads . | . . . Leg 2 | 2 . . Wheel 1 | . . 1 Hover . | . . . Flight . | . . . Utility 3 | 1 2 . Device 1 | . 1 . Storage 2 | 1 1 . Processor . | . . . Hackware . | . . . Protection . | . . . Artifact . | . . . Weapon 6 | 3 . 3 Energy Gun 1 | 1 . . Energy Cannon 1 | . . 1 Ballistic Gun 3 | 2 . 1 Ballistic Cannon . | . . . Launcher 1 | . . 1 Special Weapon . | . . . Impact Weapon . | . . . Slashing Weapon . | . . . Piercing Weapon . | . . . Special Melee Weapon . | . . . Unidentified Prototypes . | . . . Parts Lost 6 | . . 6 Power 1 | . . 1 Propulsion 2 | . . 2 Utility 1 | . . 1 Weapon 2 | . . 2 Highest Loss Streak 3 | . . 3 To Critical Strikes . | . . . Average Slot Usage (%) 94 | . 97 92 Engine 13 | . 14 13 Leg 25 | . 28 23 Device 11 | . 11 12 Storage 14 | . 14 14 Energy Gun 5 | . 14 . Ballistic Gun 17 | . 14 20 Launcher 4 | . . 7 Naked Turns . | . . . Heaviest Build 19 | 12 18 19 Greatest Support 20 | 20 20 20 Greatest Overweight (x) 5 | 1 . 5 Average Overweight (x) . | . . . Largest Inventory Capacity 10 | 8 10 10 Average Capacity 8 | 5 9 10 Most Carried 10 | 5 8 10 Average Carried 6 | 1 7 9 Final Capacity 10 | 8 10 10 Final Carried 9 | 5 8 9 Class Distribution -------------------- 100% | Mutant Dominant Class ---------------- Mutant | -10/Materials Mutant | -10/Mines Resources | -11 -10 -10 ----------- Run | Scr Mat Min Matter Collected 486 | 306 77 103 Remotely . | . . . Salvage Created 362 | 170 89 103 Parts 20 | 10 7 3 Haulers Intercepted . | . . . Recyclers Shooed . | . . . Parts Field Recycled . | . . . Retrieved Matter . | . . . Parts Self-Destructed . | . . . Prevented . | . . . Kills | -11 -10 -10 ------- Run | Scr Mat Min Combat Hostiles Destroyed 14 | . 4 10 Guns 12 | . 4 8 AOE 2 | . . 2 Classes Destroyed 5 | 2 2 1 Tunneler 3 | 3 . . Recycler 1 | 1 . . Swarmer 6 | . 3 3 Grunt 1 | . 1 . Assembled 7 | . . 7 Best Kill Streak 4 | 4 2 4 Combat Bots Only 4 | . 2 4 Max Kills in Single Turn 2 | 1 1 2 Gunslinging . | . . . Exploded 2 | . . 2 Melee . | . . . Uniques/NPCs Destroyed . | . . . Combat | -11 -10 -10 -------- Run | Scr Mat Min Damage Taken 905 | . 118 787 Core 258 | . . 258 Absorbed by Shields . | . . . Core Remaining (%) 100 | 100 . . Volleys Fired 53 | 7 17 29 Largest 2 | 2 1 2 Hottest 68 | 40 20 68 Shots Fired 79 | 14 17 48 Gun 77 | 14 17 46 Cannon 1 | . . 1 Launcher 1 | . . 1 Special . | . . . Kinetic 77 | 14 17 46 Thermal 1 | . . 1 Explosive 1 | . . 1 Electromagnetic . | . . . Robot Hit Streak 11 | 6 11 6 Robot Miss Streak 4 | 1 2 4 Penetration Max . | . . . Secondary Targets . | . . . Shots Hit Robots 48 | 10 13 25 Core Hits 27 | 4 5 18 Critical Kills . | . . . Critical Parts Destroyed 1 | 1 . . Critical Strikes 1 | 1 . . Destroy 1 | 1 . . Melee Attacks . | . . . Impact . | . . . Slashing . | . . . Piercing . | . . . Sneak Attacks . | . . . Combat Hostiles . | . . . Follow-up Attacks . | . . . Damage Inflicted 741 | 129 159 453 Guns 665 | 129 159 377 Cannons 21 | . . 21 Explosions 55 | . . 55 Melee . | . . . Ramming . | . . . Kinetic 665 | 129 159 377 Thermal 21 | . . 21 Explosive 55 | . . 55 Electromagnetic . | . . . Impact . | . . . Slashing . | . . . Piercing . | . . . Highest Corruption . | . . . Average Corruption . | . . . Corruption Purged . | . . . Corruption Blocked . | . . . Overload Shots . | . . . Overflow Damage . | . . . Projectiles . | . . . Explosions . | . . . Melee . | . . . Knockbacks . | . . . Impact . | . . . Kinetic . | . . . Secondary . | . . . Self-Inflicted Damage . | . . . Shots . | . . . Rammed . | . . . Targets Rammed . | . . . Kicked . | . . . Crushed . | . . . Highest Temperature 18 | . . 18 Average Temperature 11 | . . 11 Received Heat Transfer 44 | . 24 20 Siege Activations . | . . . Robots Corrupted . | . . . Combat Hostiles . | . . . Parts Fried . | . . . Impact Corruptions . | . . . Robots Melted . | . . . Combat Hostiles . | . . . Parts Melted . | . . . Heat Transferred 37 | . . 37 Parts Sabotaged . | . . . Parts Stolen . | . . . Parts Stripped . | . . . Power Chain Reactions . | . . . Missiles Intercepted . | . . . Alert | -11 -10 -10 ------- Run | Scr Mat Min Peak Influence 139 | 20 108 139 Initial 42 | . 13 42 Average 76 | 13 58 120 Maximum Alert Level . | . . . Low Security (%) 100 | 100 100 100 Level 1 . | . . . Level 2 . | . . . Level 3 . | . . . Level 4 . | . . . Level 5 . | . . . High Security . | . . . Max Security . | . . . Squads Dispatched . | . . . Investigation . | . . . Extermination . | . . . Reinforcement . | . . . Assault . | . . . Garrison . | . . . Intercept . | . . . Searches Triggered . | . . . Construction Impeded . | . . . Haulers Reinforced . | . . . Active Scanning Responses . | . . . Cargo Convoy Interrupts . | . . . Stealth | -11 -10 -10 --------- Run | Scr Mat Min Distress Signals . | . . . Communications Jammed . | . . . Distress Signals . | . . . Times Spotted 20 | . 4 16 Peak Tracking Total 4 | . 4 3 Tactical Retreats 3 | . . 3 Traps | -11 -10 -10 ------- Run | Scr Mat Min Traps Triggered . | . . . Indirectly . | . . . Trap Hack Attempts . | . . . Triggered . | . . . Disarmed . | . . . Reprogrammed . | . . . Reused . | . . . Traps Extracted . | . . . Installed . | . . . Triggered . | . . . Machines | -11 -10 -10 ---------- Run | Scr Mat Min Machines Disabled . | . . . Max in Single Turn . | . . . Machines Sabotaged . | . . . Garrisons Compromised . | . . . Overloaded Fab Kills . | . . . Hacking | -11 -10 -10 --------- Run | Scr Mat Min Machines Accessed 3 | . 2 1 Terminals 2 | . 2 . Fabricators . | . . . Repair Stations . | . . . Recycling Units . | . . . Scanalyzers . | . . . Garrison Access . | . . . Total Hacks 4 | . 3 1 Successful 3 | . 2 1 Failed 1 | . 1 . Catastrophic . | . . . Database Lockouts . | . . . Manual . | . . . Terminals 3 | . 3 . Fabricators . | . . . Repair Stations . | . . . Recycling Units . | . . . Scanalyzers . | . . . Garrison Access . | . . . Terminal Hacks 3 | . 2 1 Prototype ID Bank 1 | . 1 . Open Door 1 | . . 1 Zone Layout 1 | . 1 . Fabricator Hacks . | . . . Repair Station Hacks . | . . . Recycling Unit Hacks . | . . . Scanalyzer . | . . . Garrison Access Hacks . | . . . Unauthorized Hacks . | . . . Terminals . | . . . Fabricators . | . . . Repair Stations . | . . . Recycling Units . | . . . Scanalyzers . | . . . Garrison Access . | . . . Data Cores Recovered . | . . . Used . | . . . Hacking Detections 1 | . 1 . Full Trace Events . | . . . Feedback Events . | . . . Feedback Blocked . | . . . Robot Schematics Acquired . | . . . Robots Built . | . . . Authchips . | . . . Time . | . . . Total Robot Build Rating . | . . . Part Schematics Acquired . | . . . Parts Built . | . . . Authchips . | . . . Time . | . . . Total Part Build Rating . | . . . Parts Repaired . | . . . Time . | . . . Parts Recycled . | . . . Recycled Matter . | . . . Retrieved Matter . | . . . Retrieved Components . | . . . Parts Scanalyzed . | . . . Part Schematics Acquired . | . . . Parts Damaged . | . . . Bothacking | -11 -10 -10 ------------ Run | Scr Mat Min Used RIF Installer . | . . . Robots Hacked . | . . . Non-combat . | . . . Combat . | . . . Robot Hacks Applied . | . . . Relay Couplers Released . | . . . Fabnet Peak Effective % . | . . . Robots Rewired . | . . . Allies Hacked . | . . . Hacks Repelled . | . . . Allies | -11 -10 -10 -------- Run | Scr Mat Min Total Allies . | . . . Largest Group . | . . . Highest-Rated Group . | . . . Highest-Rated Ally . | . . . Total Orders . | . . . Ally Attacks . | . . . Total Damage . | . . . Kills . | . . . Allies Corrupted . | . . . Allies Melted . | . . . Intel | -11 -10 -10 ------- Run | Scr Mat Min Robot Analysis Total . | . . . Derelict Logs Recovered . | . . . Drone Launches . | . . . Drone Recoveries . | . . . Exploration | -11 -10 -10 ------------- Run | Scr Mat Min Turns Passed 625 | 146 195 284 Spaces Moved 360 | 92 127 141 Core 23 | 19 . 4 Treads . | . . . Legs 322 | 73 127 122 Wheels 15 | . . 15 Hover . | . . . Flight . | . . . Fastest Speed 50 | 50 120 95 Average Speed 118 | 109 120 123 Slowest Speed 300 | 120 120 300 Overloaded Moves . | . . . Propulsion Burnouts . | . . . Robots Hopped . | . . . Cave-ins Triggered . | . . . Exploration Rate (%) 20 | 5 22 35 Regions Visited 2 Branch Regions 1 Pre-discovered Areas . | . . . Known Exits Taken . | . . . Unknown Exits Taken 2 | 1 1 . Scrap Searched . | . . . Spaces Dug . | . . . Terrain Destroyed 4 | . . 4 Melee . | . . . Projectile . | . . . AOE 4 | . . 4 Terrain Rammed . | . . . Walls Destroyed . | . . . Machines Disabled . | . . . Actions | -11 -10 -10 --------- Run | Scr Mat Min Total 476 | 122 152 202 Wait 26 | 6 1 19 Move 358 | 91 126 141 Hop . | . . . Pick Up 22 | 11 5 6 Fast Attach . | . . . Attach 9 | 6 1 2 Detach . | . . . Swap 4 | 1 1 2 Drop 4 | . 1 3 Fire 53 | 7 17 29 Melee . | . . . Ram . | . . . Kick . | . . . Crush . | . . . Escape Stasis . | . . . Rewire . | . . . Trap . | . . . Miscellaneous . | . . . Route ------- -11/Scrapyard -10/Materials -10/Mines History --------- Turn | Location | Event 15 | -11/Scrapyard | Discovered new exit (range 15) 147 | -11/Scrapyard | Entered Materials 305 | -10/Materials | Build established: Mutant 330 | -10/Materials | Discovered new exit (range 9) 342 | -10/Materials | Entered Mines 452 | -10/Mines | Assembled infested the area 455 | -10/Mines | Met a Derelict who couldn't figure out how to use a Trap Extractor 457 | -10/Mines | Assisted by a Guerilla fighting off Assembled 614 | -10/Mines | Lost 3 parts (2n1u) 621 | -10/Mines | Core integrity fell below 50% 624 | -10/Mines | Core integrity fell below 20% 626 | -10/Mines | Destroyed by D-53 Grenadier with Mini Grenade Launcher Last Messages --------------- Acquired 9 matter. as-58139 sneak attacks. Aluminum Leg destroyed. as-02902 destroyed. Acquired 15 matter. as-94040 destroyed. U-05 Engineer destroyed. Seismic Detector destroyed. as-73389 destroyed. Aluminum Leg destroyed. as-91482 destroyed. Acquired 9 matter. Acquired 12 matter. Acquired 11 matter. Acquired Wheel. Lgt. Ion Engine destroyed. Assault Rifle destroyed. The unstable cave ceiling collapses. Hpw. Shotgun destroyed. The unstable cave ceiling collapses. Map ----- +----------------------------------------------------+ | #"!^ ##???????# #???????????????????????? | | #"= ! #???????# #???????????????????????? | | #"=[^# #?????## #????????????????????????? | | ##""## #?????# #?????????????????????????? | | ?###### #????## #?????????????????????????? | | ??????## ##???## ##????????????????????????? | | ???????# ##???## """ ##???????????????????????? | | ???????# ###### """ #???????????????????????? | | ???????# """ #???????????????????????? | | ???????# ##### #??????? ??????????????? | | ???????# #???## ###?????? #????????????? | | ???????# #????## # #??????? ????????????? | | ???????# #?????##### #?????? #???????????? | | ???????# #?????????# #?????? #???????????? | | ?????#?# #????????## #?????# #??????????? | | ????## #?????##?# #????? ??????????? | | ????# ###### ## ######## ??????????? | | ??? < # # # ?????????? | | ??? % # % ????????????? | | ?????# ### dd #???????????????? | | ???????# ?????# #????????????????? | | ????????#?????## # #?????????????????? | | ???????????????# ##?????????????????? | | ???????????????#### #??????????????????? | | ??????????????????# # #??????????????????? | | ??????????????????### @ #??????????????????? | | ????????????????????## ###??????????????????? | | ????????????????????### ## #????????????????????? | | ??????????????????????##?? ##????????????????????? | | ?????????????????????????? #?????????????????????? | | ?????????????????????????? #?????????????????????? | | ?????????????????????????? #?????????????????????? | | ?????????????????????????? #?????????????????????? | | ??????????????????????????##?????????????????????? | | ?????????????????????????????????????????????????? | | ?????????????????????????????????????????????????? | | ?????????????????????????????????????????????????? | | ?????????????????????????????????????????????????? | | ?????????????????????????????????????????????????? | | ?????????????????????????????????????????????????? | | ?????????????????????????????????????????????????? | | ?????????????????????????????????????????????????? | | ?????????????????????????????????????????????????? | | ?????????????????????????????????????????????????? | | ?????????????????????????????????????????????????? | | ?????????????????????????????????????????????????? | | ?????????????????????????????????????????????????? | | ?????????????????????????????????????????????????? | | ?????????????????????????????????????????????????? | | ?????????????????????????????????????????????????? | +----------------------------------------------------+ Best States ------------- Heat Dissipation 25 Energy Generation 10 Energy Capacity 125 Matter Stores 300 Matter Capacity 300 Sight Range 16 Terrain Scan Density 10 Evasion (%) 55 Item Schematics ----------------- None Robot Schematics ------------------ None Fabricated ------------ Nothing Alien Tech Used ----------------- None Achievements -------------- None Challenges ------------ None Game ------ Seed LobotomyCoreFlakker Manual? 0 Play Time 00:17:49 Cumulative 59.9 hours Start 2022.12.08 @ 19:53:22 End 2022.12.08 @ 20:09:19 Sessions 1 Manual Loads 0 Difficulty Rogue Special Mode None Game No. 63 Rogue 54 Adventurer 9 Explorer 0 Win Type - Total 0 Types 0/0/0/0/0/0/0/0/0 Lore% 27 Gallery% 25 Achievement% 21 Wizard Run 0 Options --------- ASCII 1 Keyboard 0 Movement Arrows Keybinds 0 Fullscreen 2 Font 18/SmallcapsGlow Map View 76x50 Tactical HUD 0 Map Filters NONE Filters NONE Steam 1 RUN: 8f12b4e7-074b-4334-acfd-1cc7873d3960